fUSD/lending_fUSD_20250504
["ID","MTS","AMOUNT","RATE_DAILY","PERIOD"]
[359847660,1746371447917,-151.0,0.0001984,2]
[359847662,1746371447926,-151.0,0.0001984,2]
[359847664,1746371447936,-162.521133,0.0001984,2]
[359847666,1746371447945,-151.0,0.0001984,2]
[359847668,1746371447955,-151.0,0.0001984,2]
[359847670,1746371447965,-151.0,0.0001984,2]
[359847672,1746371447975,-151.0,0.0001984,2]
[359847674,1746371447984,-470.361025,0.0001984,2]
[359847676,1746371447994,-151.0,0.0001984,2]
[359847678,1746371448003,-151.0,0.0001984,2]
[359847680,1746371448013,-470.361025,0.0001984,2]
[359847682,1746371448022,-151.0,0.0001984,2]
[359847684,1746371448032,-151.0,0.0001984,2]
[359847686,1746371448041,-151.0,0.0001984,2]
[359847688,1746371448051,-213.717682,0.0001984,2]
[359847690,1746371448062,-151.0,0.0001984,2]
[359847692,1746371448071,-15912.0338611,0.0001984,2]
[359847694,1746371448082,-264.337109,0.0001984,2]
[359847696,1746371448091,-151.0,0.0001984,2]
[359847698,1746371448100,-264.337109,0.0001984,2]
[359847700,1746371448110,-151.0,0.0001984,2]
[359847702,1746371448120,-151.0,0.0001984,2]
[359847704,1746371448130,-151.0,0.0001984,2]
[359847706,1746371448140,-601.530129,0.0001984,2]
[359847708,1746371448150,-151.0,0.0001984,2]
[359847710,1746371448160,-601.530129,0.0001984,2]
[359847712,1746371448169,-5683.8010855,0.0001984,2]
[359847714,1746371448179,-209.252006,0.0001984,2]
[359847716,1746371448189,-209.252006,0.0001984,2]
[359847718,1746371448199,-156.41273,0.0001984,2]
[359847720,1746371448209,-151.0,0.0001984,2]
[359847722,1746371448219,-168.401741,0.0001984,2]
[359847724,1746371448228,-202.270005,0.0001984,2]
[359847726,1746371448237,-202.270005,0.0001984,2]
[359847728,1746371448247,-151.0,0.0001984,2]
[359847730,1746371448256,-151.0,0.0001984,2]
[359847732,1746371448266,-151.0,0.0001984,2]
[359847734,1746371448275,-151.0,0.0001984,2]
[359847736,1746371448284,-151.0,0.0001984,2]
[359847738,1746371448293,-151.0,0.0001984,2]
[359847740,1746371448303,-151.0,0.0001984,2]
[359847743,1746371448316,-151.0,0.0001984,2]
[359847745,1746371448327,-152.347355,0.0001984,2]
[359847747,1746371448336,-193.033127,0.0001984,2]
[359847749,1746371448346,-193.033127,0.0001984,2]
[359847751,1746371448357,-154.836575,0.0001984,2]
[359847753,1746371448367,-151.0,0.0001984,2]
[359847755,1746371448377,-151.0,0.0001984,2]
[359847757,1746371448387,-151.0,0.0001984,2]
[359847759,1746371448397,-151.0,0.0001984,2]
[359847761,1746371448408,-151.0,0.0001984,2]
[359847763,1746371448417,-155.34335,0.0001984,2]
[359847765,1746371448429,-151.0,0.0001984,2]
[359847767,1746371448442,-239.73894,0.0001984,2]
[359847769,1746371448453,-239.73894,0.0001984,2]
[359847771,1746371448463,-239.73894,0.0001984,2]
[359847773,1746371448474,-239.73894,0.0001984,2]
[359847775,1746371448484,-151.0,0.0001984,2]
[359847777,1746371448495,-151.0,0.0001984,2]
[359847779,1746371448505,-151.0,0.0001984,2]
[359847781,1746371448516,-151.0,0.0001984,2]
[359847783,1746371448526,-151.0,0.0001984,2]
[359847785,1746371448536,-151.0,0.0001984,2]
[359847787,1746371448546,-151.0,0.0001984,2]
[359847789,1746371448556,-151.0,0.0001984,2]
[359847791,1746371448566,-387.50918,0.0001984,2]
[359847793,1746371448576,-387.50918,0.0001984,2]
[359847795,1746371448585,-387.50918,0.0001984,2]
[359847797,1746371448595,-387.50918,0.0001984,2]
[359847799,1746371448606,-43756.75,0.0001984,2]
[359847808,1746371448678,-151.0,0.0001984,2]
[359847810,1746371448688,-151.0,0.0001984,2]
[359847812,1746371448697,-151.0,0.0001984,2]
[359847814,1746371448706,-151.0,0.0001984,2]
[359847816,1746371448715,-152.660699,0.0001984,2]
[359847818,1746371448724,-152.660699,0.0001984,2]
[359847820,1746371448733,-152.660699,0.0001984,2]
[359847822,1746371448741,-152.660699,0.0001984,2]
[359847824,1746371448750,-262.077949,0.0001984,2]
[359847826,1746371448759,-262.077949,0.0001984,2]
[359847827,1746371448768,-151.0,0.0001984,2]
[359847829,1746371448778,-151.0,0.0001984,2]
[359847831,1746371448787,-262.077949,0.0001984,2]
[359847833,1746371448798,-262.077949,0.0001984,2]
[359847835,1746371448807,-151.0,0.0001984,2]
[359847837,1746371448816,-151.0,0.0001984,2]
[359847839,1746371448825,-151.0,0.0001984,2]
[359847842,1746371448837,-150.0,0.00019841,2]
[359847844,1746371448847,-150.0,0.00019842,2]
[359847846,1746371448856,-150.0,0.00019845,2]
[359847848,1746371448865,-150.0,0.00019845,2]
[359847850,1746371448874,-150.0,0.00019846,2]
[359847852,1746371448884,-150.0,0.00019848,2]
[359847854,1746371448894,-150.0,0.00019852,2]
[359847855,1746371448904,-382.44325187,0.00019854,2]
[359847858,1746371448914,-195.802605,0.00019854,2]
[359847859,1746371448923,-150.0,0.00019856,2]
[359847861,1746371448933,-150.0,0.00019857,2]
[359847864,1746371448943,-150.0,0.00019859,2]
[359847865,1746371448952,-500.0,0.00019859,2]
[359847867,1746371448962,-9939.93730635,0.0001986,2]
[359847869,1746371448971,-177.61409827,0.0001986,2]
[359847871,1746371448981,-15690.15422301,0.00019862,2]
[359847873,1746371448991,-500.0,0.00019862,2]
[359847875,1746371449001,-151.0,0.00019863,2]
[359847877,1746371449011,-151.0,0.00019863,2]
[359847879,1746371449020,-151.0,0.00019863,2]
[359847881,1746371449029,-151.0,0.00019863,2]
[359847883,1746371449039,-151.0,0.00019863,2]
[359847885,1746371449049,-151.0,0.00019863,2]
[359847887,1746371449058,-165.219882,0.00019863,2]
[359847889,1746371449068,-151.0,0.00019863,2]
[359847891,1746371449076,-168.053902,0.00019863,2]
[359847893,1746371449086,-258.872243,0.00019863,2]
[359847895,1746371449096,-177.66629,0.00019863,2]
[359847897,1746371449105,-151.0,0.00019863,2]
[359847899,1746371449115,-239.78686,0.00019863,2]
[359847901,1746371449126,-450.0,0.00019863,2]
[359847903,1746371449135,-250.947675,0.00019863,2]
[359847905,1746371449145,-250.947675,0.00019863,2]
[359847907,1746371449155,-209.975492,0.00019863,2]
[359847908,1746371449164,-151.0,0.00019863,2]
[359847909,1746371449174,-209.975492,0.00019863,2]
[359847910,1746371449184,-402.350291,0.00019863,2]
[359847911,1746371449194,-402.350291,0.00019863,2]
[359847912,1746371449204,-151.0,0.00019863,2]
[359847913,1746371449214,-151.0,0.00019863,2]
[359847914,1746371449224,-158.436892,0.00019863,2]
[359847915,1746371449233,-151.0,0.00019863,2]
[359847917,1746371449243,-151.0,0.00019863,2]
[359847919,1746371449251,-151.0,0.00019863,2]
[359847921,1746371449262,-462.73,0.00019863,2]
[359847923,1746371449271,-450.0,0.00019863,2]
[359847925,1746371449282,-450.0,0.00019863,2]
[359847927,1746371449291,-476.54,0.00019863,2]
[359847929,1746371449301,-478.04,0.00019863,2]
[359847931,1746371449311,-450.0,0.00019863,2]
[359847933,1746371449321,-151.0,0.00019863,2]
[359847934,1746371449331,-593.15,0.00019863,2]
[359847936,1746371449341,-151.0,0.00019863,2]
[359847938,1746371449351,-194.699046,0.00019863,2]
[359847940,1746371449360,-151.0,0.00019863,2]
[359847942,1746371449370,-1166.68,0.00019863,2]
[359847945,1746371449383,-151.0,0.00019863,2]
[359847946,1746371449393,-151.0,0.00019863,2]
[359847948,1746371449403,-450.0,0.00019863,2]
[359847951,1746371449413,-151.0,0.00019863,2]
[359847952,1746371449422,-151.0,0.00019863,2]
[359847954,1746371449436,-151.0,0.00019863,2]
[359847956,1746371449446,-151.0,0.00019863,2]
[359847958,1746371449455,-264.337109,0.00019863,2]
[359847960,1746371449464,-264.337109,0.00019863,2]
[359847962,1746371449475,-151.0,0.00019863,2]
[359847964,1746371449484,-601.530129,0.00019863,2]
[359847966,1746371449494,-601.530129,0.00019863,2]
[359847968,1746371449504,-209.252006,0.00019863,2]
[359847970,1746371449514,-450.0,0.00019863,2]
[359847972,1746371449523,-209.252006,0.00019863,2]
[359847974,1746371449532,-202.270005,0.00019863,2]
[359847976,1746371449541,-202.270005,0.00019863,2]
[359847978,1746371449551,-151.0,0.00019863,2]
[359847980,1746371449560,-504.23067165,0.00019863,2]
[359847982,1746371449569,-721.57,0.00019863,2]
[359847984,1746371449579,-151.0,0.00019863,2]
[359847986,1746371449588,-151.0,0.00019863,2]
[359847988,1746371449598,-180.243543,0.00019863,2]
[359847990,1746371449607,-450.0,0.00019863,2]
[359847992,1746371449616,-151.0,0.00019863,2]
[359847994,1746371449626,-450.0,0.00019863,2]
[359847995,1746371449635,-450.0,0.00019863,2]
[359847997,1746371449644,-948.05,0.00019863,2]
[359847999,1746371449653,-450.0,0.00019863,2]
[359848001,1746371449662,-659.42,0.00019863,2]
[359848003,1746371449671,-378.18911464,0.00019863,2]
[359848006,1746371449692,-151.0,0.0001984,2]
[359848008,1746371449701,-16801.43088536,0.00019863,2]
[359848010,1746371449710,-193.033127,0.00019863,2]
[359848012,1746371449719,-450.0,0.00019863,2]
[359848014,1746371449728,-193.033127,0.00019863,2]
[359848015,1746371449737,-852.95,0.00019863,2]
[359848017,1746371449747,-450.0,0.00019863,2]
[359848019,1746371449757,-511.02,0.00019863,2]
[359848021,1746371449767,-3750.44,0.00019863,2]
[359848023,1746371449776,-450.0,0.00019863,2]
[359848025,1746371449785,-450.0,0.00019863,2]
[359848027,1746371449794,-264.729166,0.00019863,2]
[359848029,1746371449804,-450.0,0.00019863,2]
[359848031,1746371449814,-2709.22,0.00019863,2]
[359848033,1746371449824,-151.0,0.00019863,2]
[359848035,1746371449833,-151.0,0.00019863,2]
[359848037,1746371449842,-151.0,0.00019863,2]
[359848039,1746371449852,-239.73894,0.00019863,2]
[359848041,1746371449861,-239.73894,0.00019863,2]
[359848043,1746371449872,-450.0,0.00019863,2]
[359848045,1746371449882,-875.32,0.00019863,2]
[359848047,1746371449893,-450.0,0.00019863,2]
[359848049,1746371449903,-151.0,0.00019863,2]
[359848051,1746371449912,-527.66,0.00019863,2]
[359848052,1746371449921,-450.0,0.00019863,2]
[359848055,1746371449931,-30743.51,0.00019863,2]
[359848056,1746371449941,-151.0,0.00019863,2]
[359848058,1746371449950,-151.0,0.00019863,2]
[359848061,1746371449960,-610.51,0.00019863,2]
[359848062,1746371449969,-151.0,0.00019863,2]
[359848065,1746371449979,-387.50918,0.00019863,2]
[359848066,1746371449989,-387.50918,0.00019863,2]
[359848068,1746371449998,-574.65,0.00019863,2]
[359848070,1746371450007,-151.0,0.00019863,2]
[359848072,1746371450016,-931.48,0.00019863,2]
[359848074,1746371450026,-151.0,0.00019863,2]
[359848076,1746371450036,-152.660699,0.00019863,2]
[359848078,1746371450046,-1190.44,0.00019863,2]
[359848081,1746371450058,-152.660699,0.00019863,2]
[359848083,1746371450069,-262.077949,0.00019863,2]
[359848084,1746371450079,-151.0,0.00019863,2]
[359848087,1746371450089,-262.077949,0.00019863,2]
[359848088,1746371450100,-450.0,0.00019863,2]
[359848090,1746371450110,-450.0,0.00019863,2]
[359848093,1746371450120,-525.54,0.00019863,2]
[359848094,1746371450129,-450.0,0.00019863,2]
[359848096,1746371450139,-151.0,0.00019863,2]
[359848098,1746371450156,-450.0,0.00019863,2]
[359848100,1746371450166,-150.0,0.00019865,2]
[359848102,1746371450176,-340.77501237,0.00019873,2]
[359848104,1746371450185,-510.10530285,0.00019873,2]
[359848106,1746371450195,-500.0,0.00019873,2]
[359848108,1746371450204,-500.0,0.00019873,2]
[359848110,1746371450213,-500.0,0.00019873,2]
[359848112,1746371450222,-506.17685878,0.00019873,2]
[359848114,1746371450231,-500.0,0.00019873,2]
[359848116,1746371450240,-500.0,0.00019873,2]
[359848118,1746371450249,-500.91070348,0.00019873,2]
[359848120,1746371450258,-15952.39024029,0.00019873,2]
[359848122,1746371450271,-691622.56815399,0.00019873,2]
[359848124,1746371450281,-151.0,0.00019873,2]
[359848126,1746371450290,-151.0,0.00019873,2]
[359848128,1746371450299,-151.0,0.00019873,2]
[359848130,1746371450309,-151.0,0.00019873,2]
[359848132,1746371450318,-151.0,0.00019873,2]
[359848134,1746371450328,-151.0,0.00019873,2]
[359848136,1746371450338,-209.252006,0.00019873,2]
[359848138,1746371450348,-209.252006,0.00019873,2]
[359848140,1746371450358,-500.0,0.00019873,2]
[359848142,1746371450368,-500.0,0.00019873,2]
[359848144,1746371450378,-306.5,0.00019873,2]
[359848146,1746371450387,-902.0,0.00019873,2]
[359848148,1746371450397,-12500.0,0.00019874,2]
[359848150,1746371450407,-12500.0,0.00019874,2]
[359848152,1746371450416,-160.076601,0.00019874,2]
[359848154,1746371450427,-151.0,0.00019874,2]
[359848156,1746371450440,-151.0,0.00019874,2]
[359848157,1746371450450,-151.0,0.00019874,2]
[359848159,1746371450459,-313.625703,0.00019874,2]
[359848161,1746371450469,-313.625703,0.00019874,2]
[359848163,1746371450479,-151.0,0.00019874,2]
[359848166,1746371450500,-151.0,0.00019874,2]
[359848168,1746371450511,-151.0,0.00019874,2]
[359848170,1746371450522,-151.0,0.00019874,2]
[359848172,1746371450532,-151.0,0.00019874,2]
[359848174,1746371450541,-470.361025,0.00019874,2]
[359848176,1746371450551,-470.361025,0.00019874,2]
[359848178,1746371450562,-174.04412,0.00019874,2]
[359848180,1746371450571,-151.0,0.00019874,2]
[359848182,1746371450582,-4010.0,0.00019875,2]
[359848184,1746371450592,-556.98,0.00019875,2]
[359848186,1746371450602,-6759.0,0.00019875,2]
[359848188,1746371450611,-153.0,0.00019875,2]
[359848190,1746371450621,-878.0,0.00019875,2]
[359848192,1746371450631,-150.0,0.00019877,2]
[359848194,1746371450640,-151.0,0.00019879,2]
[359848196,1746371450650,-151.0,0.00019879,2]
[359848198,1746371450660,-151.0,0.00019879,2]
[359848200,1746371450669,-151.0,0.00019879,2]
[359848202,1746371450679,-151.0,0.00019879,2]
[359848204,1746371450690,-151.0,0.00019879,2]
[359848206,1746371450700,-151.0,0.00019879,2]
[359848208,1746371450710,-500.0,0.00019879,2]
[359848210,1746371450719,-500.0,0.00019879,2]
[359848212,1746371450729,-427.21148242,0.00019879,2]
[359848213,1746371450739,-151.0,0.00019879,2]
[359848214,1746371450749,-372.34,0.00019879,2]
[359848215,1746371450760,-67059.30500722,0.0001988,2]
[359848216,1746371450770,-151.0,0.0001988,2]
[359848217,1746371450780,-151.0,0.0001988,2]
[359848218,1746371450790,-151.0,0.0001988,2]
[359848219,1746371450800,-151.0,0.0001988,2]
[359848220,1746371450811,-151.0,0.0001988,2]
[359848221,1746371450821,-151.0,0.0001988,2]
[359848222,1746371450834,-151.0,0.0001988,2]
[359848223,1746371450844,-264.337109,0.0001988,2]
[359848224,1746371450854,-264.337109,0.0001988,2]
[359848225,1746371450864,-151.0,0.0001988,2]
[359848227,1746371450874,-601.530129,0.0001988,2]
[359848229,1746371450884,-601.530129,0.0001988,2]
[359848231,1746371450894,-202.270005,0.0001988,2]
[359848233,1746371450903,-202.270005,0.0001988,2]
[359848235,1746371450914,-151.0,0.0001988,2]
[359848237,1746371450924,-151.0,0.0001988,2]
[359848239,1746371450934,-151.0,0.0001988,2]
[359848240,1746371450944,-151.0,0.0001988,2]
[359848241,1746371450954,-193.033127,0.0001988,2]
[359848242,1746371450964,-193.033127,0.0001988,2]
[359848244,1746371450975,-151.0,0.0001988,2]
[359848246,1746371450984,-151.0,0.0001988,2]
[359848248,1746371450994,-188.822306,0.00019882,2]
[359848251,1746371451004,-151.0,0.00019882,2]
[359848252,1746371451014,-151.0,0.00019882,2]
[359848255,1746371451023,-151.0,0.00019882,2]
[359848257,1746371451033,-151.0,0.00019882,2]
[359848259,1746371451043,-151.0,0.00019882,2]
[359848261,1746371451053,-151.0,0.00019882,2]
[359848263,1746371451068,-151.0,0.00019882,2]
[359848265,1746371451078,-250.947675,0.00019882,2]
[359848267,1746371451088,-250.947675,0.00019882,2]
[359848268,1746371451098,-250.947675,0.00019882,2]
[359848270,1746371451109,-250.947675,0.00019882,2]
[359848273,1746371451119,-209.975492,0.00019882,2]
[359848274,1746371451129,-209.975492,0.00019882,2]
[359848276,1746371451140,-151.0,0.00019882,2]
[359848277,1746371451149,-248.314913,0.00019882,2]
[359848278,1746371451159,-209.975492,0.00019882,2]
[359848279,1746371451169,-209.975492,0.00019882,2]
[359848280,1746371451179,-402.350291,0.00019882,2]
[359848281,1746371451188,-402.350291,0.00019882,2]
[359848282,1746371451198,-402.350291,0.00019882,2]
[359848283,1746371451208,-402.350291,0.00019882,2]
[359848284,1746371451217,-150.0,0.00019882,2]
[359848285,1746371451226,-151.0,0.00019882,2]
[359848286,1746371451236,-239.73894,0.00019882,2]
[359848288,1746371451246,-239.73894,0.00019882,2]
[359848290,1746371451257,-151.0,0.00019882,2]
[359848292,1746371451268,-151.0,0.00019882,2]
[359848294,1746371451278,-151.0,0.00019882,2]
[359848296,1746371451289,-187.502359,0.00019882,2]
[359848298,1746371451298,-387.50918,0.00019882,2]
[359848300,1746371451308,-387.50918,0.00019882,2]
[359848302,1746371451318,-267.87206048,0.00019882,2]
[359848304,1746371451329,-151.0,0.00019882,2]
[359848306,1746371451339,-152.660699,0.00019882,2]
[359848307,1746371451350,-152.660699,0.00019882,2]
[359848308,1746371451359,-262.077949,0.00019882,2]
[359848309,1746371451370,-262.077949,0.00019882,2]
[359848310,1746371451380,-151.0,0.00019882,2]
[359848312,1746371451391,-151.0,0.00019882,2]
[359848314,1746371451401,-12500.0,0.00019882,2]
[359848316,1746371451411,-12500.0,0.00019882,2]
[359848318,1746371451421,-151.0,0.00019887,2]
[359848320,1746371451435,-151.0,0.00019887,2]
[359848322,1746371451445,-150.0,0.00019887,2]
[359848324,1746371451455,-151.0,0.00019887,2]
[359848326,1746371451464,-151.0,0.00019887,2]
[359848328,1746371451474,-209.252006,0.00019887,2]
[359848330,1746371451484,-209.252006,0.00019887,2]
[359848332,1746371451494,-150.0,0.00019889,2]
[359848334,1746371451504,-150.0,0.00019889,2]
[359848336,1746371451515,-151.0,0.0001989,2]
[359848338,1746371451525,-267.804868,0.0001989,2]
[359848340,1746371451535,-151.0,0.0001989,2]
[359848342,1746371451545,-151.0,0.0001989,2]
[359848344,1746371451556,-151.0,0.0001989,2]
[359848345,1746371451566,-312.47387839,0.0001989,2]
[359848347,1746371451577,-151.0,0.0001989,2]
[359848349,1746371451587,-151.0,0.0001989,2]
[359848351,1746371451597,-151.0,0.0001989,2]
[359848353,1746371451607,-264.69455,0.0001989,2]
[359848355,1746371451617,-281.031129,0.0001989,2]
[359848357,1746371451627,-151.0,0.0001989,2]
[359848359,1746371451638,-462.73,0.0001989,2]
[359848361,1746371451648,-165.31372773,0.0001989,2]
[359848363,1746371451658,-450.0,0.0001989,2]
[359848365,1746371451668,-476.54,0.0001989,2]
[359848367,1746371451678,-313.625703,0.0001989,2]
[359848369,1746371451687,-313.625703,0.0001989,2]
[359848371,1746371451697,-478.04,0.0001989,2]
[359848373,1746371451707,-450.0,0.0001989,2]
[359848375,1746371451717,-151.0,0.0001989,2]
[359848377,1746371451727,-273.479778,0.0001989,2]
[359848379,1746371451737,-1166.68,0.0001989,2]
[359848381,1746371451747,-151.0,0.0001989,2]
[359848383,1746371451756,-151.0,0.0001989,2]
[359848385,1746371451766,-151.0,0.0001989,2]
[359848387,1746371451775,-151.0,0.0001989,2]
[359848389,1746371451786,-450.0,0.0001989,2]
[359848391,1746371451796,-470.361025,0.0001989,2]
[359848393,1746371451806,-151.0,0.0001989,2]
[359848395,1746371451816,-470.361025,0.0001989,2]
[359848397,1746371451828,-450.0,0.0001989,2]
[359848399,1746371451839,-721.57,0.0001989,2]
[359848401,1746371451850,-450.0,0.0001989,2]
[359848403,1746371451860,-450.0,0.0001989,2]
[359848405,1746371451870,-599.20731271,0.0001989,2]
[359848407,1746371451880,-948.05,0.0001989,2]
[359848410,1746371451890,-450.0,0.0001989,2]
[359848411,1746371451900,-659.42,0.0001989,2]
[359848413,1746371451910,-17179.62,0.0001989,2]
[359848415,1746371451920,-450.0,0.0001989,2]
[359848418,1746371451930,-852.95,0.0001989,2]
[359848419,1746371451940,-450.0,0.0001989,2]
[359848422,1746371451950,-3750.44,0.0001989,2]
[359848424,1746371451960,-450.0,0.0001989,2]
[359848426,1746371451970,-450.0,0.0001989,2]
[359848428,1746371451979,-450.0,0.0001989,2]
[359848430,1746371451989,-2709.22,0.0001989,2]
[359848432,1746371451999,-450.0,0.0001989,2]
[359848434,1746371452016,-875.32,0.0001989,2]
[359848436,1746371452033,-450.0,0.0001989,2]
[359848438,1746371452043,-527.66,0.0001989,2]
[359848440,1746371452053,-450.0,0.0001989,2]
[359848442,1746371452067,-30743.51,0.0001989,2]
[359848444,1746371452077,-610.51,0.0001989,2]
[359848446,1746371452087,-574.65,0.0001989,2]
[359848448,1746371452097,-931.48,0.0001989,2]
[359848450,1746371452107,-1190.44,0.0001989,2]
[359848452,1746371452117,-450.0,0.0001989,2]
[359848454,1746371452127,-450.0,0.0001989,2]
[359848456,1746371452137,-450.0,0.0001989,2]
[359848458,1746371452146,-450.0,0.0001989,2]
[359848460,1746371452157,-151.0,0.00019891,2]
[359848461,1746371452166,-250.947675,0.00019891,2]
[359848463,1746371452176,-250.947675,0.00019891,2]
[359848464,1746371452186,-209.975492,0.00019891,2]
[359848466,1746371452196,-209.975492,0.00019891,2]
[359848468,1746371452205,-402.350291,0.00019891,2]
[359848469,1746371452215,-402.350291,0.00019891,2]
[359848471,1746371452225,-151.0,0.00019891,2]
[359848473,1746371452234,-151.0,0.00019891,2]
[359848474,1746371452243,-264.337109,0.00019891,2]
[359848476,1746371452253,-264.337109,0.00019891,2]
[359848478,1746371452263,-151.0,0.00019891,2]
[359848479,1746371452273,-601.530129,0.00019891,2]
[359848481,1746371452283,-601.530129,0.00019891,2]
[359848483,1746371452292,-202.270005,0.00019891,2]
[359848485,1746371452302,-202.270005,0.00019891,2]
[359848486,1746371452312,-258.078666,0.00019891,2]
[359848488,1746371452322,-151.0,0.00019891,2]
[359848490,1746371452332,-151.0,0.00019891,2]
[359848491,1746371452342,-151.0,0.00019891,2]
[359848493,1746371452352,-193.033127,0.00019891,2]
[359848495,1746371452362,-193.033127,0.00019891,2]
[359848497,1746371452372,-151.0,0.00019891,2]
[359848498,1746371452382,-151.0,0.00019891,2]
[359848500,1746371452391,-151.0,0.00019891,2]
[359848502,1746371452401,-239.73894,0.00019891,2]
[359848503,1746371452411,-239.73894,0.00019891,2]
[359848505,1746371452420,-387.50918,0.00019891,2]
[359848507,1746371452433,-387.50918,0.00019891,2]
[359848509,1746371452444,-151.0,0.00019891,2]
[359848511,1746371452453,-12500.0,0.00019891,2]
[359848513,1746371452464,-12500.0,0.00019891,2]
[359848514,1746371452475,-12500.0,0.00019891,2]
[359848516,1746371452485,-12500.0,0.00019891,2]
[359848518,1746371452495,-12500.0,0.00019891,2]
[359848520,1746371452506,-150.0,0.00019892,2]
[359848521,1746371452516,-150.0,0.00019896,2]
[359848523,1746371452526,-150.0,0.00019896,2]
[359848525,1746371452535,-150.0,0.00019897,2]
[359848527,1746371452545,-298.675671,0.00019897,2]
[359848528,1746371452555,-151.0,0.00019897,2]
[359848530,1746371452565,-151.0,0.00019897,2]
[359848532,1746371452575,-152.660699,0.00019897,2]
[359848534,1746371452586,-152.660699,0.00019897,2]
[359848536,1746371452596,-262.077949,0.00019897,2]
[359848538,1746371452606,-262.077949,0.00019897,2]
[359848539,1746371452616,-151.0,0.00019897,2]
[359848541,1746371452626,-151.0,0.00019898,2]
[359848543,1746371452636,-151.0,0.00019898,2]
[359848545,1746371452646,-166.301836,0.00019898,2]
[359848547,1746371452657,-151.0,0.00019898,2]
[359848548,1746371452666,-151.0,0.00019898,2]
[359848550,1746371452676,-153.505121,0.00019898,2]
[359848552,1746371452686,-151.0,0.00019898,2]
[359848554,1746371452695,-151.0,0.00019898,2]
[359848556,1746371452706,-151.0,0.00019898,2]
[359848558,1746371452715,-151.0,0.00019898,2]
[359848560,1746371452726,-209.252006,0.00019898,2]
[359848561,1746371452736,-209.252006,0.00019898,2]
[359848563,1746371452746,-500.0,0.00019899,2]
[359848565,1746371452756,-42165.87430532,0.00019899,2]
[359848567,1746371452772,-550.59591178,0.00019899,2]
[359848569,1746371452784,-549.15005021,0.00019899,2]
[359848571,1746371452796,-801.78021236,0.00019899,2]
[359848573,1746371452809,-363954.41039364,0.00019899,2]
[359848575,1746371452819,-151.0,0.00019899,2]
[359848577,1746371452829,-162.016874,0.00019899,2]
[359848579,1746371452839,-151.0,0.00019899,2]
[359848581,1746371452850,-151.0,0.00019899,2]
[359848582,1746371452860,-151.0,0.00019899,2]
[359848584,1746371452871,-151.0,0.00019899,2]
[359848586,1746371452881,-151.0,0.00019899,2]
[359848588,1746371452891,-260.167052,0.00019899,2]
[359848590,1746371452901,-151.0,0.00019899,2]
[359848592,1746371452912,-300.0,0.00019899,2]
[359848594,1746371452922,-500.0,0.00019899,2]
[359848596,1746371452932,-151.0,0.00019899,2]
[359848597,1746371452943,-300.0,0.00019899,2]
[359848599,1746371452953,-250.947675,0.00019899,2]
[359848601,1746371452963,-250.947675,0.00019899,2]
[359848603,1746371452973,-209.975492,0.00019899,2]
[359848605,1746371452983,-209.975492,0.00019899,2]
[359848606,1746371452992,-402.350291,0.00019899,2]